Cogmind - Beta 12 X1 @@@ ROGUE MODE // 2022.07.20 @ 01:40:44 Player: Momo Result: Destroyed by H-77 Assassin with Coil Gun Performance ------------- Evolutions (7) 3500 Regions Visited (24) 4800 Robots Destroyed (234) 1170 Value Destroyed (11504) 11504 Prototype IDs (20) 400 Alien Tech Used (0) 0 Bonus (16105) 16105 TOTAL SCORE: 37479 Bonus ------- Pacifist 200 Triggered High Security 1000 Triggered Max Security 1000 High Alert Combat Kills 3511 Follower Combat Kills 4667 Entered Garrisons 1000 Used RIF Installer 3000 Network Hubs Disabled 200 Aligned with FarCom 300 Built Enhanced Grunts 300 A7 Reached Mainframe 300 Met R17 at Cetus 500 Met R17 at Research 2000 Scanned by Researcher 500 Friendly Fire -2373 Cogmind --------- Core Integrity 0/1300 Matter 118/300 Energy 100/100 System Corruption 27% Temperature Cool (0) Movement Core (50) Location -3/Testing Parts ------- > --- POWER (1) -------- (None) > --- PROPULSION (4) --- (None) > --- UTILITY (12) ----- (None) > --- WEAPON (4) ------- (None) > --- INVENTORY (5) ---- Improved Heavy Siege Treads Advanced Energy Well (500) Advanced Remote Datajack Enhanced Force Lance Peak State ------------ > --- POWER ------------ Antimatter Reactor > --- PROPULSION ------- Centrium Heavy Treads Centrium Heavy Treads > --- UTILITY ---------- Huge Storage Unit Advanced Signal Interpreter Experimental Targeting Computer Advanced Target Analyzer Core Analyzer Precision Matter Filter Centrium Medium Armor Plating Relay Coupler [Swarmer] Relay Coupler [Grunt] Relay Coupler [Sentry] Relay Coupler [Hunter] Relay Coupler [Behemoth] > --- WEAPON ----------- Cooled Nova Cannon Tri-rail Accelerator Improved Remote Datajack > --- INVENTORY -------- Improved Heavy Siege Treads Centrium Heavy Treads Advanced Energy Well Experimental Energy Well Experimental Signal Interpreter Particle Accelerator Improved Kinecellerator Centrium Medium Armor Plating Graphene Brace Improved Focal Shield Experimental Thermal Shield Improved System Shield Relay Coupler [Grunt] Relay Coupler [Duelist] Relay Coupler [Sentry] Relay Coupler [Specialist] Relay Coupler [Specialist] Relay Coupler [Heavy] Trap Reconfigurator Tri-rail Accelerator Advanced Remote Datajack Enhanced Force Lance [Rating: 153] Favorites ----------- Power Antimatter Reactor Engine Deuterium Engine Power Core Light Nuclear Core Reactor Antimatter Reactor Propulsion Centrium Heavy Treads Treads Centrium Heavy Treads Wheel Armored Wheel Utility Huge Storage Unit Device Advanced Heat Sink Storage Huge Storage Unit Processor Targeting Computer Hackware Hacking Suite Protection Centrium Medium Armor Plating Weapon Tri-rail Accelerator Energy Gun Cooled Pulse Rifle Energy Cannon Cooled Nova Cannon Ballistic Gun Light Assault Rifle Ballistic Cannon Tri-rail Accelerator Launcher Smartbomb Launcher Special Weapon Improved Remote Datajack Slashing Weapon Power Sword Piercing Weapon Enhanced Force Lance Build | -11 -10 -10 -9 -9 -9 -8 -8 -8 -8 -8 -7 -7 -6 -6 -6 -6 -6 -5 -5 -5 -5 -4 -3 -3 ------- Run | Scr Mat Min Mat Min Exi Min Mat Gar Mat Gar Fac Gar Fac Ext Cet Arc Hub Fac Gar Fac Gar Fac Res Tes Slots Evolved 14 | . . . 2 . . . 2 . . . 2 . 2 . . . . 2 . . . 2 2 . Power . | . . . . . . . . . . . . . . . . . . . . . . . . . Propulsion 2 | . . . 2 . . . . . . . . . . . . . . . . . . . . . Utility 10 | . . . . . . . 2 . . . . . 2 . . . . 2 . . . 2 2 . Weapon 2 | . . . . . . . . . . . 2 . . . . . . . . . . . . . Parts Attached 227 | 6 . 4 4 . . 1 8 24 7 21 4 4 3 11 13 2 6 31 8 13 3 21 18 15 Power 19 | 1 . 1 . . . . . 2 1 3 . . . 4 1 . 2 2 . . . . 1 1 Engine 10 | 1 . 1 . . . . . 2 1 2 . . . 2 . . . 1 . . . . . . Core 3 | . . . . . . . . . . 1 . . . 2 . . . . . . . . . . Reactor 6 | . . . . . . . . . . . . . . . 1 . 2 1 . . . . 1 1 Propulsion 30 | 2 . . 2 . . 1 3 4 4 5 1 . . . 1 . 1 4 . . . 1 . 1 Treads 19 | . . . . . . . 2 4 4 1 . . . . 1 . 1 4 . . . 1 . 1 Leg . | . . . . . . . . . . . . . . . . . . . . . . . . . Wheel 11 | 2 . . 2 . . 1 1 . . 4 1 . . . . . . . . . . . . . Hover . | . . . . . . . . . . . . . . . . . . . . . . . . . Flight . | . . . . . . . . . . . . . . . . . . . . . . . . . Utility 112 | 1 . 1 1 . . . 2 7 . 6 2 2 2 3 9 2 2 18 4 10 2 16 13 9 Device 39 | . . . . . . . . 2 . 2 . . 1 1 3 1 2 8 2 2 . 4 8 3 Storage 6 | 1 . . 1 . . . 1 . . 1 . . . . 1 . . . . . . . . 1 Processor 12 | . . 1 . . . . . . . . . . . . 1 . . 2 . 1 1 1 4 1 Hackware 25 | . . . . . . . 1 . . . . . 1 . 2 . . 4 1 6 1 9 . . Protection 30 | . . . . . . . . 5 . 3 2 2 . 2 2 1 . 4 1 1 . 2 1 4 Artifact . | . . . . . . . . . . . . . . . . . . . . . . . . . Weapon 66 | 2 . 2 1 . . . 3 11 2 7 1 2 1 4 2 . 1 7 4 3 1 4 4 4 Energy Gun 14 | . . . . . . . 2 2 1 3 1 2 . 1 2 . . . . . . . . . Energy Cannon 1 | . . . . . . . . . . . . . . . . . . . . . . . . 1 Ballistic Gun 6 | 2 . . . . . . . . . . . . . 1 . . 1 2 . . . . . . Ballistic Cannon 17 | . . 2 . . . . . 4 . 2 . . . 1 . . . 3 2 . 1 1 . 1 Launcher 9 | . . . 1 . . . 1 2 . . . . . . . . . . 2 1 . 1 1 . Special Weapon 7 | . . . . . . . . . . . . . . . . . . 2 . 1 . 2 1 1 Impact Weapon . | . . . . . . . . . . . . . . . . . . . . . . . . . Slashing Weapon 9 | . . . . . . . . 3 1 2 . . 1 1 . . . . . 1 . . . . Piercing Weapon 3 | . . . . . . . . . . . . . . . . . . . . . . . 2 1 Special Melee Weapon . | . . . . . . . . . . . . . . . . . . . . . . . . . Unidentified Prototypes 19 | . . . . . . . 1 2 . . . . . . 5 . 2 . . . . . 4 5 Corrupted Parts 1 | . . . . . . . . . . . . . . . . . 1 . . . . . . . System Corruption 1 | . . . . . . . . . . . . . . . . . 1 . . . . . . . Parts Lost 49 | . . . . . . 4 2 6 . 6 . 3 . 1 . . 9 2 1 . . . 1 14 Power 9 | . . . . . . . 1 1 . 2 . . . 1 . . 2 . . . . . 1 1 Propulsion 10 | . . . . . . 3 1 1 . 2 . . . . . . 1 . . . . . . 2 Utility 17 | . . . . . . . . 2 . 1 . 2 . . . . 2 1 1 . . . . 8 Weapon 13 | . . . . . . 1 . 2 . 1 . 1 . . . . 4 1 . . . . . 3 Highest Loss Streak 11 | . . . . . . 2 2 2 . 1 . 2 . 1 . . 3 1 1 . . . 1 11 To Critical Strikes . | . . . . . . . . . . . . . . . . . . . . . . . . . Average Slot Usage (%) 78 | . 85 86 83 100 100 73 63 79 84 88 72 65 65 73 85 85 77 68 81 81 81 79 80 66 Engine 3 | . 14 14 11 11 11 11 7 7 9 5 7 7 6 5 5 . . 3 . . . . . . Reactor 2 | . . . . . . . . . . . . . . . . 6 5 . 5 5 5 5 4 2 Treads 9 | . . . . . . . 2 17 21 12 7 7 6 6 12 13 12 10 11 11 11 10 9 6 Wheel 5 | . 28 28 28 44 44 21 17 2 . 14 10 7 6 6 . . . . . . . . . . Device 6 | . . . . . . . . . . 7 7 1 3 6 5 12 12 13 16 12 3 1 8 3 Storage 6 | . 14 14 11 11 11 11 9 9 9 9 7 7 6 6 6 6 6 5 5 5 5 5 4 5 Processor 6 | . . 1 11 11 11 11 9 9 9 9 7 7 6 6 6 . . 1 5 4 1 5 9 14 Hackware 12 | . . . . . . . 2 9 9 . . . 1 6 14 13 13 13 7 15 29 32 28 19 Protection 6 | . . . . . . . . 6 9 10 7 9 13 13 4 5 5 4 8 4 5 4 3 3 Energy Gun 4 | . . . . . . . 12 9 . 11 7 6 6 11 10 13 11 . . . . . . . Ballistic Cannon 4 | . . 19 16 11 11 11 3 2 14 1 . . . . 6 6 5 7 1 4 1 5 4 2 Launcher 1 | . . . 5 11 11 7 1 2 . . . . . . . . . . 3 . 3 . 3 . Special Weapon 2 | . . . . . . . . . . . . . . . . . . 2 11 10 5 4 . 1 Slashing Weapon 2 | . . . . . . . . 3 3 3 7 7 6 1 6 6 1 . . . 5 3 . . Naked Turns 3 | . . . . . . . . . . . . . . . . . . . . . . . . 3 Heaviest Build 148 | 12 12 24 59 57 57 57 95 101 103 107 110 111 113 126 126 128 128 148 139 139 125 138 140 140 Greatest Support 160 | 32 32 32 52 52 52 52 26 150 115 115 28 28 28 28 155 155 160 160 160 160 160 160 160 160 Greatest Overweight (x) 8 | . . . 1 1 1 5 8 3 5 7 4 3 4 4 4 . 1 1 . . . . . 1 Average Overweight (x) . | . . . . 1 1 2 2 . . 1 3 3 3 3 . . . . . . . . . . Largest Inventory Capacity 25 | 8 8 8 20 20 20 20 25 25 25 25 25 25 25 25 25 25 25 25 25 25 25 25 25 25 Average Capacity 24 | 7 8 8 16 20 20 20 21 25 25 25 25 25 25 25 25 25 25 25 25 25 25 25 25 23 Most Carried 25 | . . 8 8 11 12 14 19 25 25 25 25 24 24 25 25 25 25 25 25 25 25 25 25 25 Average Carried 22 | . . 4 8 9 11 12 17 23 25 23 23 22 24 24 24 24 23 24 24 24 24 22 23 18 Final Capacity 25 | 8 8 8 20 20 20 20 25 25 25 25 25 25 25 25 25 25 25 25 25 25 25 25 25 5 Final Carried 25 | . . 8 8 11 12 14 17 25 25 25 23 24 24 25 25 24 23 24 25 25 25 21 22 5 Class Distribution -------------------- 37% | Botlord-Mutant 27% | Mutant 18% | Scavenger-Mutant Dominant Class ---------------- Mutant | -10/Materials Mutant | -10/Mines Mutant | -9/Materials Mutant | -9/Mines Mutant | -9/Exiles Mutant | -8/Mines Mutant | -8/Materials Mutant | -8/Garrison Mutant | -8/Materials Scavenger-Mutant | -8/Garrison Scavenger-Skirmisher | -7/Factory Mutant | -7/Garrison Mutant | -6/Factory Mutant | -6/Extension Scavenger-Mutant | -6/Cetus Scavenger-Mutant | -6/Archives Scavenger-Mutant | -6/Hub_04(d) Botlord-Tank | -5/Factory Botlord-Mutant | -5/Garrison Botlord-Mutant | -5/Factory Botlord-Mutant | -5/Garrison Botlord-Mutant | -4/Factory Botlord-Mutant | -3/Research Botlord-Mutant | -3/Testing Resources | -11 -10 -10 -9 -9 -9 -8 -8 -8 -8 -8 -7 -7 -6 -6 -6 -6 -6 -5 -5 -5 -5 -4 -3 -3 ----------- Run | Scr Mat Min Mat Min Exi Min Mat Gar Mat Gar Fac Gar Fac Ext Cet Arc Hub Fac Gar Fac Gar Fac Res Tes Matter Collected 6015 | 194 . 96 132 58 . 108 111 395 43 591 30 45 . 105 244 68 201 667 414 604 501 614 724 70 Remotely . | . . . . . . . . . . . . . . . . . . . . . . . . . Salvage Created 10212 | . . . 175 14 . 193 129 1177 118 1763 99 411 . 498 81 269 1133 741 157 746 574 637 1218 79 Parts 445 | . . . 18 4 . 4 7 42 6 45 5 26 . 24 3 9 60 29 4 35 36 29 55 4 Haulers Intercepted 2 | . . . . . . . . . 1 . . . . . . . . . . . . . 1 . Recyclers Shooed 1 | . . . . . . . . . . . . . . . . . . 1 . . . . . . Parts Field Recycled 9 | . . . . . . . . . . . . . . . . . . 9 . . . . . . Retrieved Matter 81 | . . . . . . . . . . . . . . . . . . 81 . . . . . . Parts Self-Destructed . | . . . . . . . . . . . . . . . . . . . . . . . . . Prevented . | . . . . . . . . . . . . . . . . . . . . . . . . . Kills | -11 -10 -10 -9 -9 -9 -8 -8 -8 -8 -8 -7 -7 -6 -6 -6 -6 -6 -5 -5 -5 -5 -4 -3 -3 ------- Run | Scr Mat Min Mat Min Exi Min Mat Gar Mat Gar Fac Gar Fac Ext Cet Arc Hub Fac Gar Fac Gar Fac Res Tes Combat Hostiles Destroyed 246 | . . . 9 3 . 4 5 19 3 20 2 10 . 5 1 4 22 14 53 13 27 9 22 1 Melee 5 | . . . . . . . . 1 . . . 2 . 2 . . . . . . . . . . Guns 47 | . . . . . . . 2 5 . 10 2 8 . 3 1 2 14 . . . . . . . Cannons 62 | . . . . 1 . 1 . 5 3 8 . . . . . 1 5 13 1 9 1 7 6 1 AOE 126 | . . . 9 2 . 3 3 7 . . . . . . . . 1 1 52 4 26 2 16 . Classes Destroyed 25 | . . . 4 . . 2 1 3 1 . . . . . 1 . 3 3 1 . 1 1 3 1 Worker 7 | . . . . . . . . . . . . . . . . . 1 . . 1 . 1 4 . Builder 8 | . . . 1 . . . . . 1 . . . . . . . 1 1 . . . 3 1 . Tunneler 3 | . . . 1 . . 1 . . . . . . . . . . . . . . . 1 . . Hauler 2 | . . . . . . . . . 1 . . . . . . . . . . . . . 1 . Recycler 6 | . . . . . . 2 . . . . . . . . . . . 1 . 2 . 1 . . Operator 2 | . . . . . . . . . . . . . . . . . 1 1 . . . . . . Watcher 5 | . . . . . . . . . . . . . . . 1 . 2 . . 1 . . 1 . Swarmer 47 | . . . 3 3 . . 3 3 . 4 . 5 . . . . 6 . . 4 15 1 . . Cutter 4 | . . . . . . . . 4 . . . . . . . . . . . . . . . . Grunt 71 | . . . 6 . . 3 . 4 2 9 . 4 . 2 . . 8 1 . 3 9 4 16 . Brawler 4 | . . . . . . . . . . . . . . . . . . 3 . . . 1 . . Duelist 3 | . . . . . . . . 1 . . . 2 . . . . . . . . . . . . Protector 1 | . . . . . . . . . . . . . . . . . . 1 . . . . . . Researcher 1 | . . . . . . . . . . . . . . . . . . . . . . . . 1 Sentry 27 | . . . . . . . 2 6 1 6 1 . . 2 . 4 1 2 . 2 . . . . Demolisher 1 | . . . . . . . . . . . . . . . . . . . . . . 1 . . Specialist 2 | . . . . . . . . . . . . . . . . . 2 . . . . . . . Hunter 10 | . . . . . . 1 . . . 1 . . . . . . 2 2 . 1 1 1 1 . Programmer 19 | . . . . . . . . 1 . . 1 . . . . . 3 4 1 3 1 1 3 1 Heavy 1 | . . . . . . . . . . . . . . . . . . 1 . . . . . . Behemoth 1 | . . . . . . . . . . . . . . . . . . . . . 1 . . . Cetus Guard 1 | . . . . . . . . . . . . . . . 1 . . . . . . . . . Striker 2 | . . . . . . . . . . . . . . . . . . . . . . . 2 . Executioner 1 | . . . . . . . . . . . . . . . . . . . . . . . 1 . Assembled 52 | . . . . . . . . . . . . . . . . . . . 52 . . . . . Thug 3 | . . . . . . . . . . . . . . 3 . . . . . . . . . . Guerrilla 1 | . . . . . . . . . . . . . . 1 . . . . . . . . . . Revision 1 | . . . . . . . . . . . . . . . . . . . . . . . 1 . Best Kill Streak 25 | . . . 6 3 . 3 3 7 3 4 1 4 . 2 1 1 6 10 25 4 11 12 17 1 Combat Bots Only 25 | . . . 5 3 . 3 3 7 2 4 1 4 . 2 1 1 3 5 25 4 11 4 10 1 Max Kills in Single Turn 6 | . . . 3 2 . 1 3 3 1 1 1 2 . 2 1 1 4 3 6 4 5 2 6 1 Gunslinging . | . . . . . . . . . . . . . . . . . . . . . . . . . Exploded 6 | . . . 3 2 . 1 3 3 . . . . . . . . 1 1 6 4 5 1 4 . Melee 1 | . . . . . . . . 1 . . . 1 . 1 . . . . . . . . . . Uniques/NPCs Destroyed . | . . . . . . . . . . . . . . . . . . . . . . . . . Combat | -11 -10 -10 -9 -9 -9 -8 -8 -8 -8 -8 -7 -7 -6 -6 -6 -6 -6 -5 -5 -5 -5 -4 -3 -3 -------- Run | Scr Mat Min Mat Min Exi Min Mat Gar Mat Gar Fac Gar Fac Ext Cet Arc Hub Fac Gar Fac Gar Fac Res Tes Damage Taken 17200 | . . . 91 16 . 266 174 1756 332 1595 295 639 . 301 85 841 2273 1001 134 480 81 366 1127 5347 Core 2479 | . . . . 10 . 58 16 212 28 163 6 93 . 38 30 98 293 . 1 73 23 34 153 1150 Absorbed by Shields 1129 | . . . . . . . . . . . . 67 . 70 . . . . 60 195 18 352 345 22 Reduced by Siege Mode 368 | . . . . . . . . . . . . . . . . 83 69 45 . 12 . . 69 90 Regen/Repaired (Parts) 3610 | . . . . . . . . . 546 . . . . . . . . 574 . 756 . 1435 295 4 Core Remaining (%) 78 | 100 . 100 . . . 83 . . . 23 . 85 . . . . 46 . . . 90 97 . . Volleys Fired 658 | . . . 13 3 . 23 6 51 10 73 . 4 . 28 29 28 58 41 25 70 24 64 81 27 Largest 3 | . . . 2 1 . 2 2 2 2 2 . 1 . 1 3 2 3 2 1 1 1 2 1 1 Hottest 480 | . . . 88 44 . 77 40 120 88 88 . 20 . 60 240 480 213 120 60 60 60 120 60 150 Shots Fired 899 | . . . 14 3 . 25 11 70 19 125 10 27 . 43 34 41 113 61 25 69 24 77 81 27 Gun 396 | . . . . . . . 10 49 1 100 10 27 . 43 27 33 90 6 . . . . . . Cannon 324 | . . . 5 2 . 19 . 9 18 25 . . . . 7 8 23 41 2 43 5 37 58 22 Launcher 82 | . . . 9 1 . 6 1 12 . . . . . . . . . . 20 1 17 2 13 . Special 97 | . . . . . . . . . . . . . . . . . . 14 3 25 2 38 10 5 Kinetic 333 | . . . 5 2 . 19 . 9 18 25 . . . . 13 8 23 47 2 43 5 37 58 19 Thermal 387 | . . . . . . . 10 49 1 100 10 27 . 43 21 33 90 . . . . . . 3 Explosive 82 | . . . 9 1 . 6 1 12 . . . . . . . . . . 20 1 17 2 13 . Electromagnetic . | . . . . . . . . . . . . . . . . . . . . . . . . . Robot Hit Streak 33 | . . . 5 1 . 7 12 17 11 33 3 4 . 6 4 13 19 26 5 17 8 11 31 19 Robot Miss Streak 10 | . . . 6 6 . 7 . 7 5 4 3 10 . 4 8 2 4 2 2 5 1 8 3 1 Penetration Max . | . . . . . . . . . . . . . . . . . . . . . . . . . Secondary Targets 1 | . . . . . . . . 1 . . . . . . . . . . . . . . . . Max Gunslinging Chain 1 | . . . . . . . . 1 . . . . . . . . . . . . . . . . Autonomous 60 | . . . . . . . . . . . 10 33 . 17 . . . . . . . . . . Shots Hit Robots 687 | . . . 10 2 . 21 10 97 18 147 7 25 1 32 12 35 74 41 5 54 6 45 30 15 Core Hits 579 | . . . 20 4 . 24 6 56 17 73 3 17 . 20 12 9 39 28 68 31 52 24 68 8 Critical Kills . | . . . . . . . . . . . . . . . . . . . . . . . . . Critical Parts Destroyed . | . . . . . . . . . . . . . . . . . . . . . . . . . Critical Strikes 30 | . . . . . . . 2 7 . 5 . 1 . . . . . 3 . 3 1 2 5 1 Burn 7 | . . . . . . . 2 3 . 2 . . . . . . . . . . . . . . Blast 15 | . . . . . . . . . . . . . . . . . . 3 . 3 1 2 5 1 Sever 8 | . . . . . . . . 4 . 3 . 1 . . . . . . . . . . . . Melee Attacks 166 | . . . . . . . . 44 7 54 2 10 1 6 1 . 3 . . . 2 . . 36 Impact . | . . . . . . . . . . . . . . . . . . . . . . . . . Slashing 130 | . . . . . . . . 44 7 54 2 10 1 6 1 . 3 . . . 2 . . . Piercing 36 | . . . . . . . . . . . . . . . . . . . . . . . . 36 Sneak Attacks 3 | . . . . . . . . . 1 . . . . . . . . . . . . . . 2 Combat Hostiles . | . . . . . . . . . . . . . . . . . . . . . . . . . Follow-up Attacks 4 | . . . . . . . . 4 . . . . . . . . . . . . . . . . Damage Inflicted 39321 | . . . 816 132 . 671 305 3402 400 4584 395 1039 44 1475 335 1154 3003 2686 4665 2926 3887 1673 4768 961 Guns 8111 | . . . . . . . 174 886 . 1577 395 885 . 1305 246 909 1734 . . . . . . . Cannons 10716 | . . . 93 19 . 334 . 192 340 504 . . . . 89 245 406 2313 59 2486 199 1157 1599 681 Explosions 15595 | . . . 723 113 . 337 131 670 . . . . . . . . 863 373 4606 440 3654 516 3169 . Melee 4877 | . . . . . . . . 1654 60 2503 . 154 44 165 . . . . . . 34 . . 263 Ramming 22 | . . . . . . . . . . . . . . 5 . . . . . . . . . 17 Kinetic 10795 | . . . 93 19 . 334 . 192 340 504 . . . . 168 245 406 2313 59 2486 199 1157 1599 681 Thermal 8405 | . . . . . . . 174 886 . 1577 395 885 . 1305 167 909 1734 373 . . . . . . Explosive 14323 | . . . 723 113 . 337 131 670 . . . . . . . . . . 4606 404 3654 516 3169 . Electromagnetic 899 | . . . . . . . . . . . . . . . . . 863 . . 36 . . . . Impact . | . . . . . . . . . . . . . . . . . . . . . . . . . Slashing 4614 | . . . . . . . . 1654 60 2503 . 154 44 165 . . . . . . 34 . . . Piercing 263 | . . . . . . . . . . . . . . . . . . . . . . . . 263 Highest Corruption 27 | . . . . . . . . 4 4 4 . . . 1 1 1 5 3 . 3 3 . 1 27 Average Corruption 3 | . . . . . . . . 3 4 4 . . . 1 1 1 1 1 . 3 3 . 1 11 Corruption Purged . | . . . . . . . . . . . . . . . . . . . . . . . . . Corruption Blocked 2 | . . . . . . . . . . . . . . . . . . . . 2 . . . . Effects 122 | . . . . . . . . 5 14 30 . . . 2 3 4 21 5 . 11 17 . . 10 Message Errors 32 | . . . . . . . . . 4 8 . . . . . . 6 . . 4 4 . . 6 Matter Fused 27 | . . . . . . . . 1 5 5 . . . . 2 . 5 1 . 2 6 . . . Heat Flow Errors 10 | . . . . . . . . 1 1 3 . . . . . . 1 2 . 1 1 . . . Energy Discharges 15 | . . . . . . . . 1 1 2 . . . . 1 3 4 . . 2 1 . . . Parts Rejected 2 | . . . . . . . . . . . . . . . . . . . . . . . . 2 Data Loss (minor) 19 | . . . . . . . . . 1 6 . . . 1 . . 3 1 . 1 5 . . 1 Data Loss (major) 7 | . . . . . . . . 2 1 2 . . . . . . 1 1 . . . . . . Misfires 3 | . . . . . . . . . . 1 . . . 1 . 1 . . . . . . . . Alerts 4 | . . . . . . . . . 1 2 . . . . . . 1 . . . . . . . Misdirections 1 | . . . . . . . . . . . . . . . . . . . . . . . . 1 Weapon Failures 2 | . . . . . . . . . . 1 . . . . . . . . . 1 . . . . Overload Shots 42 | . . . . . . . . 4 . . . . . 15 18 2 . . . . . . . 3 Effects 3 | . . . . . . . . 1 . . . . . 2 . . . . . . . . . . Energy Bleed 3 | . . . . . . . . 1 . . . . . 2 . . . . . . . . . . Overflow Damage 990 | . . . 24 . . . . 56 . 34 . 11 9 . . . 38 113 358 45 118 7 50 127 Projectiles 195 | . . . . . . . . . . . . . . . . . 38 25 . 45 9 7 50 21 Explosions 586 | . . . 24 . . . . 7 . . . . . . . . . 88 358 . 109 . . . Melee 209 | . . . . . . . . 49 . 34 . 11 9 . . . . . . . . . . 106 Knockbacks 80 | . . . 1 1 . 8 . 3 8 6 . . . . . . 3 11 1 15 2 1 14 6 Impact . | . . . . . . . . . . . . . . . . . . . . . . . . . Kinetic 75 | . . . 1 1 . 8 . 2 8 5 . . . . . . 3 11 1 15 2 1 14 3 Secondary 5 | . . . . . . . . 1 . 1 . . . . . . . . . . . . . 3 Self-Inflicted Damage 284 | . . . . 2 . 23 . 106 . . . . . 2 . . . 114 9 20 . . . 8 Shots 11 | . . . . 1 . 1 . 5 . . . . . . . . . 1 2 1 . . . . Rammed 9 | . . . . . . . . . . . . . . 1 . . . . . . . . . 8 Targets Rammed 9 | . . . . . . . . . . . . . . 1 . . . . . . . . . 8 Kicked . | . . . . . . . . . . . . . . . . . . . . . . . . . Crushed . | . . . . . . . . . . . . . . . . . . . . . . . . . Highest Temperature 505 | . . . 21 . . 39 2 239 216 323 84 505 . 270 386 378 270 199 6 196 129 150 1 166 Average Temperature 95 | . . . 12 . . 17 2 48 70 74 29 158 . 81 178 168 80 75 4 25 26 66 1 65 Received Heat Transfer 3245 | . . . 33 . . 54 54 432 108 657 66 198 . 71 18 90 538 115 . 74 26 16 37 658 Effects 14 | . . . . . . . . . . 2 . 1 . . 5 3 3 . . . . . . . Shutdowns 3 | . . . . . . . . . . . . 1 . . . 2 . . . . . . . . Energy Bleed 3 | . . . . . . . . . . 1 . . . . 2 . . . . . . . . . Interference 6 | . . . . . . . . . . . . . . . 3 . 3 . . . . . . . Short Circuit 2 | . . . . . . . . . . 1 . . . . . 1 . . . . . . . . Siege Activations 32 | . . . . . . . . . . . . . . . . 4 11 6 . 4 . 3 3 1 Total Turns 441 | . . . . . . . . . . . . . . . . 70 179 76 . 39 . 24 35 18 Longest Duration 63 | . . . . . . . . . . . . . . . . 29 63 23 . 15 . 13 24 18 Robots Corrupted 2 | . . . . . . . . . . . . . . . . . 2 . . . . . . . Combat Hostiles 2 | . . . . . . . . . . . . . . . . . 2 . . . . . . . Parts Fried 2 | . . . . . . . . . . . . . . . . . 2 . . . . . . . Impact Corruptions . | . . . . . . . . . . . . . . . . . . . . . . . . . Robots Melted 4 | . . . . . . . . 1 . 2 . . . . . 1 . . . . . . . . Combat Hostiles 4 | . . . . . . . . 1 . 2 . . . . . 1 . . . . . . . . Parts Melted 20 | . . . . . . . 2 6 . 3 . . . 2 . 4 3 . . . . . . . Heat Transferred 11682 | . . . . . . . 481 1547 . 3219 325 886 . 1481 211 1062 2220 250 . . . . . . Parts Sabotaged 4 | . . . . . . . . . . . . . . . . . . . . . . . . 4 Parts Stolen . | . . . . . . . . . . . . . . . . . . . . . . . . . Parts Stripped . | . . . . . . . . . . . . . . . . . . . . . . . . . Power Chain Reactions 1 | . . . . . . . . . . . . . . . . . 1 . . . . . . . Missiles Intercepted . | . . . . . . . . . . . . . . . . . . . . . . . . . Alert | -11 -10 -10 -9 -9 -9 -8 -8 -8 -8 -8 -7 -7 -6 -6 -6 -6 -6 -5 -5 -5 -5 -4 -3 -3 ------- Run | Scr Mat Min Mat Min Exi Min Mat Gar Mat Gar Fac Gar Fac Ext Cet Arc Hub Fac Gar Fac Gar Fac Res Tes Peak Influence 2205 | . 15 20 376 258 . 94 170 560 375 1000 692 655 396 483 892 369 812 818 763 998 2205 1870 1807 1676 Initial 1157 | . . 5 7 146 . . 1 97 273 129 525 344 343 46 270 276 58 385 381 400 698 1157 1100 1100 Average 652 | . 6 6 132 257 . 70 87 346 287 570 618 570 318 204 594 333 240 465 576 477 1742 1259 1381 1627 Maximum Alert Level 5 | . . . 1 1 . . . 2 1 3 2 2 1 2 3 1 3 3 3 3 5 5 5 5 Low Security (%) 22 | 100 100 100 55 . . 100 100 33 27 13 . . 16 57 . . 73 . . 12 . . . . Level 1 18 | . . . 44 100 . . . 21 72 22 . 8 83 29 22 99 8 27 8 17 . . . . Level 2 26 | . . . . . . . . 44 . 29 100 91 . 12 50 . 3 63 65 54 12 . . . Level 3 9 | . . . . . . . . . . 34 . . . . 27 . 15 9 26 15 2 20 1 . Level 4 14 | . . . . . . . . . . . . . . . . . . . . . 6 63 82 . Level 5 5 | . . . . . . . . . . . . . . . . . . . . . 79 . 11 . High Security 1 | . . . . . . . . . . . . . . . . . . . . . . 16 4 . Max Security 2 | . . . . . . . . . . . . . . . . . . . . . . . . 99 Squads Dispatched 83 | . 1 1 . . . . . . 1 . 2 . . 3 . . 15 7 . 8 . 17 7 21 Investigation 8 | . . 1 . . . . . . . . . . . 1 . . . 1 . 2 . 1 2 . Extermination 10 | . . . . . . . . . . . . . . . . . 4 2 . 2 . 2 . . Reinforcement 23 | . 1 . . . . . . . 1 . 2 . . 2 . . 6 1 . 1 . 3 5 1 Assault 32 | . . . . . . . . . . . . . . . . . 2 2 . 1 . 7 . 20 Garrison 10 | . . . . . . . . . . . . . . . . . 3 1 . 2 . 4 . . Intercept . | . . . . . . . . . . . . . . . . . . . . . . . . . Searches Triggered . | . . . . . . . . . . . . . . . . . . . . . . . . . Construction Impeded 6 | . . . . . . . . . . . . . . 2 . . . . . 1 . 2 1 . Haulers Reinforced 4 | . . . . . . . . . . . . . . . . . 1 . . . . . 3 . Active Scanning Responses . | . . . . . . . . . . . . . . . . . . . . . . . . . Cargo Convoy Interrupts . | . . . . . . . . . . . . . . . . . . . . . . . . . Stealth | -11 -10 -10 -9 -9 -9 -8 -8 -8 -8 -8 -7 -7 -6 -6 -6 -6 -6 -5 -5 -5 -5 -4 -3 -3 --------- Run | Scr Mat Min Mat Min Exi Min Mat Gar Mat Gar Fac Gar Fac Ext Cet Arc Hub Fac Gar Fac Gar Fac Res Tes Distress Signals 18 | . . . 2 . . . . . . . . . . . 2 . 1 1 . 3 . 1 8 . Communications Jammed . | . . . . . . . . . . . . . . . . . . . . . . . . . Distress Signals . | . . . . . . . . . . . . . . . . . . . . . . . . . Times Spotted 509 | . 4 1 13 1 . 4 6 20 3 28 7 15 1 23 17 10 36 28 59 34 15 58 42 84 Peak Tracking Total 63 | . 4 1 5 1 . 3 4 7 3 5 2 5 1 4 5 1 9 6 21 4 6 12 11 63 Tactical Retreats 24 | . . . . . . . . 1 1 6 . 1 . . . . 6 3 . . . . . 6 Traps | -11 -10 -10 -9 -9 -9 -8 -8 -8 -8 -8 -7 -7 -6 -6 -6 -6 -6 -5 -5 -5 -5 -4 -3 -3 ------- Run | Scr Mat Min Mat Min Exi Min Mat Gar Mat Gar Fac Gar Fac Ext Cet Arc Hub Fac Gar Fac Gar Fac Res Tes Traps Triggered 29 | . . . . . . . 1 1 1 4 2 10 . 2 . . . 4 1 . 2 1 . . Indirectly . | . . . . . . . . . . . . . . . . . . . . . . . . . Trap Hack Attempts . | . . . . . . . . . . . . . . . . . . . . . . . . . Triggered . | . . . . . . . . . . . . . . . . . . . . . . . . . Disarmed . | . . . . . . . . . . . . . . . . . . . . . . . . . Reprogrammed 5 | . . . . . . . . . . . . . . . . . . 5 . . . . . . Reused 7 | . . . . . . . . 1 . . . . . . . . 1 1 . . . 4 . . Traps Reconfigurated 15 | . . . . . . . . 2 . . . . . 1 . . 4 . . . . 7 1 . Traps Extracted . | . . . . . . . . . . . . . . . . . . . . . . . . . Installed 1 | . . . . . . . . . . . . . . . . . 1 . . . . . . . Triggered 7 | . . . . . . . . 1 . . . . . . . . 1 1 . . . 4 . . Most Traps Carried 4 | . . 4 3 3 3 3 3 3 . 2 2 2 2 2 2 1 1 . . . . . . . Machines | -11 -10 -10 -9 -9 -9 -8 -8 -8 -8 -8 -7 -7 -6 -6 -6 -6 -6 -5 -5 -5 -5 -4 -3 -3 ---------- Run | Scr Mat Min Mat Min Exi Min Mat Gar Mat Gar Fac Gar Fac Ext Cet Arc Hub Fac Gar Fac Gar Fac Res Tes Machines Disabled 58 | . . . . . . . . . . 6 3 . . 3 2 . 14 4 1 9 3 5 5 3 Max in Single Turn 13 | . . . . . . . . . . 1 2 . . 1 . . 13 2 1 1 1 3 1 1 Garrison Access 2 | . . . . . . . . . . . . . . . . . 1 . . 1 . . . . Garrison Relay 6 | . . . . . . . . . . 2 . . . . . . . . 1 . 3 . . . Network Hub 1 | . . . . . . . . . . . . . . . . . 1 . . . . . . . Machines Sabotaged . | . . . . . . . . . . . . . . . . . . . . . . . . . Garrisons Compromised . | . . . . . . . . . . . . . . . . . . . . . . . . . Overloaded Fab Kills . | . . . . . . . . . . . . . . . . . . . . . . . . . Hacking | -11 -10 -10 -9 -9 -9 -8 -8 -8 -8 -8 -7 -7 -6 -6 -6 -6 -6 -5 -5 -5 -5 -4 -3 -3 --------- Run | Scr Mat Min Mat Min Exi Min Mat Gar Mat Gar Fac Gar Fac Ext Cet Arc Hub Fac Gar Fac Gar Fac Res Tes Machines Accessed 73 | . . 1 . . . . 1 . 4 2 6 2 6 10 2 1 8 11 . 12 1 3 3 . Terminals 44 | . . . . . . . . . 2 2 2 2 3 10 2 . 8 4 . 5 1 1 2 . Fabricators 8 | . . . . . . . . . . . 2 . . . . . . 3 . 2 . . 1 . Repair Stations 7 | . . . . . . . . . 1 . 1 . . . . . . 2 . 1 . 2 . . Recycling Units . | . . . . . . . . . . . . . . . . . . . . . . . . . Scanalyzers 4 | . . . . . . . . . . . . . 1 . . . . 1 . 2 . . . . Garrison Access 8 | . . . . . . . 1 . 1 . 1 . 2 . . . . 1 . 2 . . . . Total Hacks 262 | . . 1 . . . . 1 . 11 3 9 2 11 21 2 25 36 52 . 62 3 18 5 . Successful 146 | . . 1 . . . . 1 . 6 1 4 1 8 6 2 25 25 23 . 30 1 11 1 . Failed 116 | . . . . . . . . . 5 2 5 1 3 15 . . 11 29 . 32 2 7 4 . Catastrophic 14 | . . . . . . . . . . . 1 . . 5 . . . 3 . 3 1 . 1 . Database Lockouts . | . . . . . . . . . . . . . . . . . . . . . . . . . Manual 96 | . . . . . 1 . . . 6 . 3 . 2 1 2 1 27 29 . 21 1 1 1 . Terminals 140 | . . . . . . . . . 6 3 4 2 7 21 2 . 36 29 . 20 3 3 4 . Fabricators 17 | . . . . . . . . . . . 3 . . . . . . 7 . 6 . . 1 . Repair Stations 37 | . . . . . . . . . 4 . 1 . . . . . . 11 . 6 . 15 . . Recycling Units . | . . . . . . . . . . . . . . . . . . . . . . . . . Scanalyzers 28 | . . . . . . . . . . . . . 2 . . . . 3 . 23 . . . . Garrison Access 14 | . . . . . . . 1 . 1 . 1 . 2 . . . . 2 . 7 . . . . Terminal Hacks 67 | . . 1 . . . . . . . 1 . 1 3 6 2 25 11 7 . 8 1 . 1 . Record 26 | . . . . . . . . . . . . . . . 1 25 . . . . . . . . Part Schematic 1 | . . . . . . . . . . . . . . . . . 1 . . . . . . . Open Door 9 | . . 1 . . . . . . . . . . 1 6 1 . . . . . . . . . Open DSF 2 | . . . . . . . . . . . . . . . . . . . . 1 . . 1 . Branch Access Points 2 | . . . . . . . . . . . . . . . . . . 1 . 1 . . . . Emergency Access Points 3 | . . . . . . . . . . . . . . . . . 2 . . . 1 . . . Terminal Index 2 | . . . . . . . . . . . . . . . . . . 1 . 1 . . . . Garrison Index 1 | . . . . . . . . . . . . . . . . . . . . 1 . . . . Unreport Threat 8 | . . . . . . . . . . . . . 2 . . . 1 2 . 3 . . . . Locate Traps 5 | . . . . . . . . . . . . . . . . . 3 1 . 1 . . . . Reprogram Traps 1 | . . . . . . . . . . . . . . . . . . 1 . . . . . . Recall Reinforcements 2 | . . . . . . . . . . . . . . . . . 2 . . . . . . . Zone Layout 3 | . . . . . . . . . . . . . . . . . 2 1 . . . . . . Security Stations 2 | . . . . . . . . . . 1 . 1 . . . . . . . . . . . . Fabricator Hacks 5 | . . . . . . . . . . . 2 . . . . . . 1 . 2 . . . . Build 5 | . . . . . . . . . . . 2 . . . . . . 1 . 2 . . . . Repair Station Hacks 19 | . . . . . . . . . 2 . . . . . . . . 4 . 3 . 10 . . Scan Component 10 | . . . . . . . . . 1 . . . . . . . . 2 . 2 . 5 . . Repair 8 | . . . . . . . . . 1 . . . . . . . . 1 . 1 . 5 . . Refit 1 | . . . . . . . . . . . . . . . . . . 1 . . . . . . Recycling Unit Hacks . | . . . . . . . . . . . . . . . . . . . . . . . . . Scanalyzer 12 | . . . . . . . . . . . . . 2 . . . . 1 . 9 . . . . Insert Component 6 | . . . . . . . . . . . . . 1 . . . . 1 . 4 . . . . Analyze 6 | . . . . . . . . . . . . . 1 . . . . . . 5 . . . . Garrison Access Hacks 8 | . . . . . . . 1 . 1 . 1 . 2 . . . . 1 . 2 . . . . Unlock Access 8 | . . . . . . . 1 . 1 . 1 . 2 . . . . 1 . 2 . . . . Unauthorized Hacks 35 | . . . . . . . . . 3 . 1 . 1 . . . 14 9 . 6 . 1 . . Terminals 27 | . . . . . . . . . 3 . 1 . 1 . . . 14 5 . 2 . 1 . . Assimilate 4 | . . . . . . . . . . . . . . . . . 2 1 . . . 1 . . Botnet 13 | . . . . . . . . . 1 . 1 . 1 . . . 6 3 . 1 . . . . Detonate 4 | . . . . . . . . . . . . . . . . . 4 . . . . . . . Disrupt 2 | . . . . . . . . . 1 . . . . . . . 1 . . . . . . . Operators 4 | . . . . . . . . . 1 . . . . . . . 1 1 . 1 . . . . Fabricators 4 | . . . . . . . . . . . . . . . . . . 3 . 1 . . . . Fabnet 4 | . . . . . . . . . . . . . . . . . . 3 . 1 . . . . Repair Stations 1 | . . . . . . . . . . . . . . . . . . . . 1 . . . . Mechanics 1 | . . . . . . . . . . . . . . . . . . . . 1 . . . . Recycling Units . | . . . . . . . . . . . . . . . . . . . . . . . . . Scanalyzers . | . . . . . . . . . . . . . . . . . . . . . . . . . Garrison Access 3 | . . . . . . . . . . . . . . . . . . 1 . 2 . . . . Reprogram 3 | . . . . . . . . . . . . . . . . . . 1 . 2 . . . . Data Cores Recovered . | . . . . . . . . . . . . . . . . . . . . . . . . . Used . | . . . . . . . . . . . . . . . . . . . . . . . . . Hacking Detections 50 | . . . . . . . 1 . 3 2 5 2 4 6 . . 6 8 . 8 1 2 2 . Full Trace Events 3 | . . . . . . . . . . 1 . . . 1 . . . . . 1 . . . . Feedback Events . | . . . . . . . . . . . . . . . . . . . . . . . . . Feedback Blocked . | . . . . . . . . . . . . . . . . . . . . . . . . . Robot Schematics Acquired . | . . . . . . . . . . . . . . . . . . . . . . . . . Robots Built 8 | . . . . . . . . . . . 4 . . . . . . . . 4 . . . . Authchips . | . . . . . . . . . . . . . . . . . . . . . . . . . Time 423 | . . . . . . . . . . . 215 . . . . . . . . 208 . . . . Total Robot Build Rating 32 | . . . . . . . . . . . 9 . . . . . . . . 23 . . . . Part Schematics Acquired 4 | . . . . . . . . . . . . . 1 . . . 1 . . 2 . . . . Parts Built 2 | . . . . . . . . . . . . . . . . . . 2 . . . . . . Authchips . | . . . . . . . . . . . . . . . . . . . . . . . . . Time 139 | . . . . . . . . . . . . . . . . . . 139 . . . . . . Total Part Build Rating 18 | . . . . . . . . . . . . . . . . . . 18 . . . . . . Parts Repaired 8 | . . . . . . . . . 1 . . . . . . . . 1 . 1 . 5 . . Time 522 | . . . . . . . . . 62 . . . . . . . . 54 . 108 . 298 . . Parts Recycled . | . . . . . . . . . . . . . . . . . . . . . . . . . Recycled Matter . | . . . . . . . . . . . . . . . . . . . . . . . . . Retrieved Matter . | . . . . . . . . . . . . . . . . . . . . . . . . . Retrieved Components . | . . . . . . . . . . . . . . . . . . . . . . . . . Parts Scanalyzed 5 | . . . . . . . . . . . . . 1 . . . . 1 . 3 . . . . Part Schematics Acquired 3 | . . . . . . . . . . . . . 1 . . . . . . 2 . . . . Parts Damaged 1 | . . . . . . . . . . . . . . . . . . . . 1 . . . . Bothacking | -11 -10 -10 -9 -9 -9 -8 -8 -8 -8 -8 -7 -7 -6 -6 -6 -6 -6 -5 -5 -5 -5 -4 -3 -3 ------------ Run | Scr Mat Min Mat Min Exi Min Mat Gar Mat Gar Fac Gar Fac Ext Cet Arc Hub Fac Gar Fac Gar Fac Res Tes Used RIF Installer 6 | . . . . . . . . 1 . 2 . 1 . . . . . . 1 . 1 . . . Coupler Efficiency 2 | . . . . . . . . . . 2 . . . . . . . . . . . . . . Command Fork 1 | . . . . . . . . . . . . . . . . . . . . . 1 . . . Program Shield 1 | . . . . . . . . . . . . . . . . . . . 1 . . . . . Autoassimilate 1 | . . . . . . . . . . . . 1 . . . . . . . . . . . . Robots Hacked 73 | . . . . . . . . . . . . . . . . . . 8 1 12 2 29 17 4 Non-combat 9 | . . . . . . . . . . . . . . . . . . 2 . 2 . 4 1 . Combat 64 | . . . . . . . . . . . . . . . . . . 6 1 10 2 25 16 4 Autoassimilated 4 | . . . . . . . . . . . . . . . . . . . . 1 . 2 1 . Robot Hacks Applied 47 | . . . . . . . . . . . . . . . . . . 8 2 12 2 19 4 . parse_system 1 | . . . . . . . . . . . . . . . . . . . 1 . . . . . ignore_parts 1 | . . . . . . . . . . . . . . . . . . . . 1 . . . . purge_threat 2 | . . . . . . . . . . . . . . . . . . . . . . 2 . . block_reporting 1 | . . . . . . . . . . . . . . . . . . . . . . 1 . . scatter_targeting 1 | . . . . . . . . . . . . . . . . . . . . . . . 1 . disrupt_area 1 | . . . . . . . . . . . . . . . . . . . . 1 . . . . overwrite_iff 7 | . . . . . . . . . . . . . . . . . . 1 . 1 . 5 . . formatsys_low 5 | . . . . . . . . . . . . . . . . . . 1 . . . 3 1 . formatsys_high 27 | . . . . . . . . . . . . . . . . . . 6 1 9 2 7 2 . formatsys_deep 1 | . . . . . . . . . . . . . . . . . . . . . . 1 . . Relay Couplers Released 40 | . . . . . . . . . . 8 . . . . . . 3 . 9 4 13 . 3 . Machine Destruction 26 | . . . . . . . . . . 8 . . . . . . 3 . 5 . 10 . . . Programmers 14 | . . . . . . . . . . . . . . . . . . . 4 4 3 . 3 . Attached 19 | . . . . . . . . . . . . . . . . . . 4 1 5 1 8 . . Fabnet Peak Effective % 12 | . . . . . . . . . . . . . . . . . . . . . . 12 4 4 Autooverrided 26 | . . . . . . . . . . . . . . . . . . . . . . 10 12 4 Robots Rewired 10 | . . . . . . . . . . . . . . 10 . . . . . . . . . . Allies Hacked 5 | . . . . . . . . . . . . . . 1 . . . . . 1 . 1 1 1 Hacks Repelled . | . . . . . . . . . . . . . . . . . . . . . . . . . Allies | -11 -10 -10 -9 -9 -9 -8 -8 -8 -8 -8 -7 -7 -6 -6 -6 -6 -6 -5 -5 -5 -5 -4 -3 -3 -------- Run | Scr Mat Min Mat Min Exi Min Mat Gar Mat Gar Fac Gar Fac Ext Cet Arc Hub Fac Gar Fac Gar Fac Res Tes Total Allies 117 | . . . . . . . . . . . 4 . . 22 5 . . 11 1 17 2 34 17 4 Largest Group 18 | . . . . . . . . . . . 4 3 . 18 16 2 . 9 9 9 9 14 8 2 Highest-Rated Group 858 | . . . . . . . . . . . 73 54 . 641 858 163 . 276 276 356 356 612 385 128 Highest-Rated Ally 159 | . . . . . . . . . . . 19 18 . 159 159 144 . 65 65 65 65 137 110 64 Total Orders 30 | . . . . . . . . . . . . 3 . . 2 . . . 1 5 8 9 2 . STAY 9 | . . . . . . . . . . . . 1 . . 1 . . . . 2 3 2 . . ROAM 1 | . . . . . . . . . . . . . . . 1 . . . . . . . . . FOLLOW 8 | . . . . . . . . . . . . 1 . . . . . . . 1 4 2 . . GUARD 4 | . . . . . . . . . . . . 1 . . . . . . . 1 1 1 . . AID 8 | . . . . . . . . . . . . . . . . . . . 1 1 . 4 2 . Ally Attacks 731 | . . . . . . . . . . . . 14 . 111 86 2 . 29 48 141 44 160 86 10 Total Damage 21294 | . . . . . . . . . . . . 390 . 2885 2937 85 . 490 823 2668 1274 6211 2982 549 Kills 142 | . . . . . . . . . . . . 4 . 17 19 . . 6 16 19 9 36 15 1 Allies Corrupted 6 | . . . . . . . . . . . . . . . . . . . . 1 2 2 1 . Allies Melted 1 | . . . . . . . . . . . . . . . . . . . . . . 1 . . Intel | -11 -10 -10 -9 -9 -9 -8 -8 -8 -8 -8 -7 -7 -6 -6 -6 -6 -6 -5 -5 -5 -5 -4 -3 -3 ------- Run | Scr Mat Min Mat Min Exi Min Mat Gar Mat Gar Fac Gar Fac Ext Cet Arc Hub Fac Gar Fac Gar Fac Res Tes Robot Analysis Total . | . . . . . . . . . . . . . . . . . . . . . . . . . Derelict Logs Recovered 2 | . . 2 . . . . . . . . . . . . . . . . . . . . . . Drone Launches . | . . . . . . . . . . . . . . . . . . . . . . . . . Drone Recoveries . | . . . . . . . . . . . . . . . . . . . . . . . . . Exploration | -11 -10 -10 -9 -9 -9 -8 -8 -8 -8 -8 -7 -7 -6 -6 -6 -6 -6 -5 -5 -5 -5 -4 -3 -3 ------------- Run | Scr Mat Min Mat Min Exi Min Mat Gar Mat Gar Fac Gar Fac Ext Cet Arc Hub Fac Gar Fac Gar Fac Res Tes Turns Passed 17710 | 45 57 297 169 152 221 415 266 869 554 1535 446 761 364 1331 400 403 1467 1338 575 1589 831 1036 2207 382 Spaces Moved 9271 | 38 58 265 128 134 210 277 183 294 178 678 243 425 233 701 169 176 701 638 304 875 459 541 1222 141 Core 46 | 3 . . . . . . . . . . . . . . . . . . . . . . . 43 Treads 5815 | . . . . . . . . 239 178 239 . . . . 145 176 701 638 304 875 459 541 1222 98 Legs . | . . . . . . . . . . . . . . . . . . . . . . . . . Wheels 3410 | 35 58 265 128 134 210 277 183 55 . 439 243 425 233 701 24 . . . . . . . . . Hover . | . . . . . . . . . . . . . . . . . . . . . . . . . Flight . | . . . . . . . . . . . . . . . . . . . . . . . . . Fastest Speed 50 | 50 100 100 100 105 105 105 110 120 163 105 145 145 145 145 160 160 160 160 160 160 160 160 160 50 Average Speed 152 | 96 100 100 106 105 105 119 118 168 192 162 147 145 153 159 160 160 160 164 160 160 160 160 160 129 Slowest Speed 570 | 100 100 100 115 105 105 155 200 245 570 240 150 145 160 160 160 160 240 240 160 160 160 160 160 240 Overloaded Moves . | . . . . . . . . . . . . . . . . . . . . . . . . . Propulsion Burnouts . | . . . . . . . . . . . . . . . . . . . . . . . . . Robots Hopped . | . . . . . . . . . . . . . . . . . . . . . . . . . Cave-ins Triggered 2 | . . . . . . . . . . . . . . . . . 1 . . . . . . 1 Exploration Rate (%) 40 | 3 16 60 22 34 60 43 27 40 22 65 12 47 8 81 73 88 63 17 46 35 70 17 33 21 Regions Visited 24 Branch Regions 9 Pre-discovered Areas . | . . . . . . . . . . . . . . . . . . . . . . . . . Known Exits Taken 6 | . . . . . . . 1 . 1 . 1 . . . . . . 1 . 1 . . 1 . Unknown Exits Taken 13 | 1 1 1 1 1 1 1 . . . . . . 1 1 1 1 1 . . . . 1 . . Scrap Searched 4 | . . 2 . 1 . 1 . . . . . . . . . . . . . . . . . . Spaces Dug 110 | . . . . . . . . . 6 . 2 . . 2 12 . 11 9 . 5 1 10 42 10 Terrain Destroyed 1050 | . . . 47 12 . 43 8 21 6 . 7 . . 5 13 3 189 132 198 39 85 119 113 10 Melee 18 | . . . . . . . . . 6 . 2 . . 2 1 . 3 . . . 1 . . 3 Projectile 214 | . . . . . . . . 1 . . 5 . . 3 12 3 17 47 . 29 . 36 54 7 AOE 818 | . . . 47 12 . 43 8 20 . . . . . . . . 169 85 198 10 84 83 59 . Terrain Rammed . | . . . . . . . . . . . . . . . . . . . . . . . . . Walls Destroyed . | . . . . . . . . . . . . . . . . . . . . . . . . . Machines Disabled . | . . . . . . . . . . . . . . . . . . . . . . . . . Actions | -11 -10 -10 -9 -9 -9 -8 -8 -8 -8 -8 -7 -7 -6 -6 -6 -6 -6 -5 -5 -5 -5 -4 -3 -3 --------- Run | Scr Mat Min Mat Min Exi Min Mat Gar Mat Gar Fac Gar Fac Ext Cet Arc Hub Fac Gar Fac Gar Fac Res Tes Total 11778 | 43 57 296 145 142 210 335 219 530 357 902 327 551 237 873 266 257 937 879 370 1012 529 662 1398 244 Wait 1048 | . . 15 . 3 . 33 16 90 152 45 75 29 . 24 33 51 163 139 18 41 36 23 55 7 Move 9248 | 37 57 264 127 133 209 276 183 293 178 677 242 424 232 700 168 175 699 637 303 874 458 540 1221 141 Hop . | . . . . . . . . . . . . . . . . . . . . . . . . . Pick Up 121 | . . 9 . 3 1 2 5 16 . 11 1 5 . 6 8 . 4 12 9 6 3 5 10 5 Fast Attach 87 | 6 . 4 2 . . 1 4 7 4 10 3 1 3 4 5 1 1 11 1 4 . 4 7 4 Attach 80 | . . . . . . . 2 9 . 4 1 3 . 4 1 . 3 17 6 3 2 11 5 9 Detach 22 | . . . . . . . . 2 . . . 1 . . . . . 6 . 1 . 8 3 1 Swap 60 | . . . 2 . . . 2 8 3 7 . . . 3 7 1 2 3 1 6 1 6 6 2 Drop 103 | . . 4 1 . . . 1 13 3 13 3 . 1 6 14 1 2 13 7 7 2 1 10 1 Fire 658 | . . . 13 3 . 23 6 51 10 73 . 4 . 28 29 28 58 41 25 70 24 64 81 27 Melee 162 | . . . . . . . . 40 7 54 2 10 1 6 1 . 3 . . . 2 . . 36 Ram 10 | . . . . . . . . . . . . . . 1 . . . . . . . . . 9 Kick . | . . . . . . . . . . . . . . . . . . . . . . . . . Crush . | . . . . . . . . . . . . . . . . . . . . . . . . . Escape Stasis 102 | . . . . . . . . 1 . 8 . 74 . 16 . . 1 . . . . . . 2 Rewire 76 | . . . . . . . . . . . . . . 75 . . . . . . 1 . . . Trap 1 | . . . . . . . . . . . . . . . . . 1 . . . . . . . Miscellaneous . | . . . . . . . . . . . . . . . . . . . . . . . . . Route ------- -11/Scrapyard -10/Materials -10/Mines (discovered 2 exits: [*Mat x2]) -9/Materials -9/Mines -9/Exiles -8/Mines -8/Materials (discovered 2 exits: *Fac / Gar) -8/Garrison -8/Materials (discovered 2 exits: *Fac / Gar) -8/Garrison (discovered 2 exits: *Fac x2) -7/Factory -7/Garrison (discovered 2 exits: *Fac x2) -6/Factory (discovered 3 exits: *Ext / Gar / Gar) -6/Extension (discovered 2 exits: *Fac / *Cet) -6/Cetus (discovered 2 exits: *Fac / *Arc) -6/Archives (discovered 3 exits: *Fac / *Hub x2) -6/Hub_04(d) (discovered 2 exits: *Fac x2) -5/Factory (discovered 5 exits: *Fac x2 / Upp x2 / Gar) -5/Garrison (discovered 2 exits: *Fac x2) -5/Factory (discovered 3 exits: Upp x2 / Gar) -5/Garrison (discovered 3 exits: *Fac x3) -4/Factory (discovered 3 exits: *Res / *Upp x2) -3/Research (discovered 3 exits: [*Res x2] / *Tes) -3/Testing History --------- Turn | Location | Event 10 | -11/Scrapyard | Discovered new exit (range 16) 46 | -11/Scrapyard | Entered Materials 93 | -10/Materials | Discovered new exit (range 11) 103 | -10/Materials | Entered Mines 135 | -10/Mines | Learned Materials garrison access intel 159 | -10/Mines | Discovered new exit (range 7) 189 | -10/Mines | Met a Derelict shopkeep closing up shop 246 | -10/Mines | Received a Rocket Launcher from a helpful Derelict 268 | -10/Mines | Learned 2 Materials zone layouts 273 | -10/Mines | Found a hidden stash of uninstalled traps 318 | -10/Mines | Build established: Mutant 360 | -10/Mines | Discovered new exit (range 11) 369 | -10/Mines | Joined a pair of Derelicts in attacking an 0b10 outpost 400 | -10/Mines | Entered Materials 400 | -9/Materials | Evolved 2 slots: Propulsion x2 557 | -9/Materials | Discovered new exit (range 11) 569 | -9/Materials | Entered Mines 613 | -9/Mines | A weapon hastily lodged in a ceiling crevice suddenly fell to the ground 663 | -9/Mines | YI-UF0 nonchalantly dropped a Grenade Launcher on the ground 716 | -9/Mines | Deemed a non-threat by the Exiles lab entrance 717 | -9/Mines | Discovered new exit (range 5) 721 | -9/Mines | Entered Exiles 748 | -9/Exiles | Met 8R-AWN 766 | -9/Exiles | Met EX-HEX 798 | -9/Exiles | Met EX-BIN 812 | -9/Exiles | Aligned with FarCom system 813 | -9/Exiles | Given EX-Vault access code 837 | -9/Exiles | Opened EX-Vault 842 | -9/Exiles | Found Prototype Device 863 | -9/Exiles | Warned to stay clear of 0b10 Research branches 893 | -9/Exiles | Met EX-DEC 930 | -9/Exiles | Discovered new exit (range 11) 942 | -9/Exiles | Left Exiles lab with Trap Reconfigurator 942 | -9/Exiles | Entered Mines 1327 | -8/Mines | Discovered new exit (range 10) 1357 | -8/Mines | Entered Materials 1357 | -8/Materials | Evolved 2 slots: Utility x2 1358 | -8/Materials | Loaded intel: 1 garrison access location 1470 | -8/Materials | Discovered new exit (range 16) 1623 | -8/Materials | Identified exit to Garrison 1623 | -8/Materials | Entered Garrison 1640 | -8/Garrison | Installed Relay Interface Framework 1801 | -8/Garrison | Identified Trap Reconfigurator 1825 | -8/Garrison | Triggered checkpoint 1998 | -8/Garrison | Destroyed 7 combat bots 2030 | -8/Garrison | Triggered checkpoint 2097 | -8/Garrison | Discovered new exit (range 15) 2492 | -8/Garrison | Entered Materials 2915 | -8/Materials | Repaired Imp. Heavy Treads 3041 | -8/Materials | Discovered new exit (range 10) 3046 | -8/Materials | Identified exit to Garrison 3046 | -8/Materials | Entered Garrison 3132 | -8/Garrison | Triggered checkpoint 3177 | -8/Garrison | Expanded RIF knowledge: Coupler Efficiency 3248 | -8/Garrison | Learned Factory security intel 3363 | -8/Garrison | Triggered checkpoint 3376 | -8/Garrison | Triggered checkpoint 3396 | -8/Garrison | Build established: Scavenger-Mutant 3424 | -8/Garrison | Core integrity fell below 50% 3595 | -8/Garrison | Garrison Relay disabled 3909 | -8/Garrison | Discovered new exit (range 13) 3982 | -8/Garrison | Expanded RIF knowledge: Coupler Efficiency 4050 | -8/Garrison | Triggered checkpoint 4066 | -8/Garrison | Garrison Relay disabled 4255 | -8/Garrison | Discovered new exit (range 14) 4581 | -8/Garrison | Entered Factory 4581 | -7/Factory | Evolved 2 slots: Weapon x2 4787 | -7/Factory | Fabricated O-24 Administrator? 4950 | -7/Factory | Identified exit to Garrison 5018 | -7/Factory | Fabricated L-31 Rogue (x3) 5027 | -7/Factory | Entered Garrison 5027 | -7/Garrison | Accompanied by 3 allies 5198 | -7/Garrison | Triggered checkpoint 5316 | -7/Garrison | Discovered new exit (range 11) 5333 | -7/Garrison | Expanded RIF knowledge: Autoassimilate 5466 | -7/Garrison | Triggered checkpoint 5536 | -7/Garrison | Triggered checkpoint 5544 | -7/Garrison | Discovered new exit (range 15) 5569 | -7/Garrison | Learned Factory security intel 5788 | -7/Garrison | Entered Factory 5788 | -6/Factory | Evolved 2 slots: Utility x2 5820 | -6/Factory | Identified exit to Garrison 5887 | -6/Factory | Build established: Mutant 5992 | -6/Factory | Identified exit to Garrison 6014 | -6/Factory | Discovered new exit (range 10) 6152 | -6/Factory | Entered Extension 6218 | -6/Extension | Rescued a captive Derelict 6237 | -6/Extension | Rescued a captive Derelict 6239 | -6/Extension | Rescued a captive Derelict 6297 | -6/Extension | Rescued A7 6475 | -6/Extension | Rescued a captive Derelict 6476 | -6/Extension | Rescued a captive Derelict 6512 | -6/Extension | Rescued a captive Derelict 6513 | -6/Extension | Rescued a captive Derelict 6922 | -6/Extension | Spotted B-75 Beast 6932 | -6/Extension | Allies destroyed B-75 Beast 6938 | -6/Extension | Spotted B-75 Beast 6951 | -6/Extension | Allies destroyed B-75 Beast 7110 | -6/Extension | Rescued a captive Derelict 7134 | -6/Extension | Rescued a captive Derelict 7322 | -6/Extension | Rescued a captive Derelict 7405 | -6/Extension | Rescued a captive Derelict 7449 | -6/Extension | Discovered new exit (range 10) 7455 | -6/Extension | Discovered new exit (range 6) 7483 | -6/Extension | Entered Cetus 7483 | -6/Cetus | Accompanied by 16 allies (A7) 7488 | -6/Cetus | Acquired a Cetus Manufacturing Module code from A7 7503 | -6/Cetus | Spotted Cetus Guard 7503 | -6/Cetus | Spotted Cetus Guard 7505 | -6/Cetus | Spotted Cetus Guard 7507 | -6/Cetus | Spotted Cetus Guard 7510 | -6/Cetus | Allies destroyed Cetus Guard 7518 | -6/Cetus | Allies destroyed Cetus Guard 7520 | -6/Cetus | Allies destroyed Cetus Guard 7520 | -6/Cetus | Allies destroyed Cetus Guard 7603 | -6/Cetus | Started Cetus Manufacturing Module 7618 | -6/Cetus | Escorted A7 to Cetus Mainframe 7628 | -6/Cetus | Manufactured an Enhanced Grunt 7653 | -6/Cetus | Manufactured an Enhanced Grunt 7678 | -6/Cetus | Manufactured an Enhanced Grunt 7703 | -6/Cetus | Manufactured an Enhanced Grunt 7717 | -6/Cetus | Found a strange terminal 7728 | -6/Cetus | Manufactured an Enhanced Grunt 7743 | -6/Cetus | Discovered new exit (range 15) 7776 | -6/Cetus | Spotted Cetus Guard 7776 | -6/Cetus | Spotted Cetus Guard 7778 | -6/Cetus | Spotted Cetus Guard 7778 | -6/Cetus | Spotted Cetus Guard 7786 | -6/Cetus | Allies destroyed Cetus Guard 7787 | -6/Cetus | Destroyed Cetus Guard 7795 | -6/Cetus | Allies destroyed Cetus Guard 7798 | -6/Cetus | Allies destroyed Cetus Guard 7799 | -6/Cetus | Discovered new exit (range 16) 7810 | -6/Cetus | Met Revision 17 7840 | -6/Cetus | Found Prototype Device 7840 | -6/Cetus | Identified Exp. Thermal Shield 7883 | -6/Cetus | Entered Archives 7883 | -6/Archives | Accompanied by 2 allies (A7) 7888 | -6/Archives | Received a hacking code to weaken MAIN.C 8104 | -6/Archives | Build established: Scavenger-Mutant 8115 | -6/Archives | Unable to access archive contents 8120 | -6/Archives | Discovered new exit (range 15) 8131 | -6/Archives | Unable to access archive contents 8134 | -6/Archives | Discovered new exit (range 15) 8148 | -6/Archives | Unable to access archive contents 8152 | -6/Archives | Discovered new exit (range 16) 8164 | -6/Archives | Unable to access archive contents 8286 | -6/Archives | Entered Hub_04(d) 8344 | -6/Hub_04(d) | Discovered new exit (range 5) 8637 | -6/Hub_04(d) | Discovered new exit (range 8) 9209 | -6/Hub_04(d) | Garrison activated, responded to threat 9479 | -6/Hub_04(d) | Network Hub disabled 9574 | -6/Hub_04(d) | Crushed by falling debris 9686 | -6/Hub_04(d) | First assault squad dispatched 9692 | -6/Hub_04(d) | Lost 3 parts (1p2w) 9706 | -6/Hub_04(d) | Core integrity fell below 50% 9753 | -6/Hub_04(d) | Entered Factory 9753 | -5/Factory | Evolved 2 slots: Utility x2 9907 | -5/Factory | Repaired Centrium Heavy Treads? 10046 | -5/Factory | Identified exit to Upper Caves 10053 | -5/Factory | First assault squad dispatched 10228 | -5/Factory | Discovered new exit (range 7) 10641 | -5/Factory | Build established: Botlord-Tank 10678 | -5/Factory | Discovered new exit (range 14) 10865 | -5/Factory | Fabricated Lgt. Quantum Reactor? 10944 | -5/Factory | Identified exit to Garrison 11047 | -5/Factory | Garrison activated, responded to threat 11091 | -5/Factory | Entered Garrison 11091 | -5/Garrison | Accompanied by 9 allies 11106 | -5/Garrison | Assembled breached garrison interior 11125 | -5/Garrison | Build established: Botlord-Mutant 11180 | -5/Garrison | Destroyed 25 combat bots 11275 | -5/Garrison | Expanded RIF knowledge: Program Shield 11288 | -5/Garrison | Garrison Relay disabled 11442 | -5/Garrison | Destroyed 17 combat bots 11466 | -5/Garrison | Discovered new exit (range 8) 11590 | -5/Garrison | Destroyed 7 combat bots 11637 | -5/Garrison | Discovered new exit (range 5) 11666 | -5/Garrison | Entered Factory 11666 | -5/Factory | Accompanied by 3 allies 11886 | -5/Factory | Repaired Centrium Heavy Treads 12356 | -5/Factory | Fabricated A-15 Conveyor? 12508 | -5/Factory | Garrison activated, responded to threat 12510 | -5/Factory | P-70 Sage assimilated allied Conveyor 6a 12562 | -5/Factory | Identified exit to Garrison 12584 | -5/Factory | P-80 Master assimilated allied Archangel 6a 12876 | -5/Factory | Fabricated B-60 Warrior? 13188 | -5/Factory | Identified exit to Garrison 13255 | -5/Factory | Entered Garrison 13255 | -5/Garrison | Accompanied by 9 allies 13360 | -5/Garrison | Triggered checkpoint 13368 | -5/Garrison | Triggered checkpoint 13377 | -5/Garrison | Destroyed B-75 Beast 13398 | -5/Garrison | Destroyed 11 combat bots 13415 | -5/Garrison | Triggered checkpoint 13426 | -5/Garrison | Triggered checkpoint 13449 | -5/Garrison | Destroyed 8 combat bots 13546 | -5/Garrison | Triggered checkpoint 13563 | -5/Garrison | Discovered new exit (range 11) 13742 | -5/Garrison | Discovered new exit (range 11) 13774 | -5/Garrison | Triggered checkpoint 13832 | -5/Garrison | Expanded RIF knowledge: Command Fork 13859 | -5/Garrison | Garrison Relay disabled 14022 | -5/Garrison | Garrison Relay disabled 14059 | -5/Garrison | Discovered new exit (range 15) 14086 | -5/Garrison | Entered Factory 14086 | -4/Factory | Accompanied by 6 allies 14086 | -4/Factory | Evolved 2 slots: Utility x2 14149 | -4/Factory | Repaired Broken Centrium Heavy Treads 14192 | -4/Factory | Discovered new exit (range 4) 14203 | -4/Factory | Repaired Centrium Medium Armor Plating? 14287 | -4/Factory | Repaired Broken Centrium Heavy Treads? 14336 | -4/Factory | First assault squad dispatched 14378 | -4/Factory | Repaired Centrium Medium Armor Plating? 14419 | -4/Factory | Repaired Centrium Heavy Treads? 14479 | -4/Factory | Assimilated ARC 7a with formatsys_deep 14677 | -4/Factory | Discovered new exit (range 10) 14714 | -4/Factory | Identified exit to Upper Caves 14910 | -4/Factory | Garrison activated, responded to threat 14955 | -4/Factory | High security lockdown imminent 14990 | -4/Factory | Spotted B-86 Titan 14998 | -4/Factory | Assimilated Titan 7a with formatsys_high 15010 | -4/Factory | Discovered new exit (range 14) 15035 | -4/Factory | High security lockdown engaged 15122 | -4/Factory | Entered Research 15122 | -3/Research | Accompanied by 4 allies 15122 | -3/Research | Evolved 2 slots: Utility x2 15188 | -3/Research | Found Enh. Force Lance 15322 | -3/Research | Revision forces began assault on 0b10 15386 | -3/Research | Met up with Revision 17++ 15449 | -3/Research | Spotted B-86 Titan 15558 | -3/Research | Local machine network offline 15602 | -3/Research | Destroyed 10 combat bots 15822 | -3/Research | Research terminal network offline 15843 | -3/Research | Found Exp. Thermal Shield 15969 | -3/Research | Discovered new exit (range 13) 16486 | -3/Research | Discovered new exit (range 9) 16626 | -3/Research | Spotted Executioner 16626 | -3/Research | Spotted Striker 16627 | -3/Research | Allies destroyed Striker 16631 | -3/Research | Allies destroyed Executioner 16697 | -3/Research | Found Prototype Processor 16697 | -3/Research | Identified Exp. Targeting Computer 16880 | -3/Research | Spotted Striker 16889 | -3/Research | Allies destroyed Striker 16931 | -3/Research | Spotted Striker 16939 | -3/Research | Destroyed Executioner 16978 | -3/Research | Spotted Striker 16983 | -3/Research | Destroyed Striker 17203 | -3/Research | Discovered new exit (range 4) 17225 | -3/Research | High security lockdown imminent 17251 | -3/Research | Spotted Striker 17273 | -3/Research | P-80 Master assimilated allied Administrator 8a 17305 | -3/Research | High security lockdown engaged 17315 | -3/Research | Spotted Striker 17319 | -3/Research | Destroyed Striker 17328 | -3/Research | Identified exit to Testing 17329 | -3/Research | Entered Testing 17329 | -3/Testing | Accompanied by 2 allies 17330 | -3/Testing | Maximum security lockdown engaged 17426 | -3/Testing | Found Prototype Energy Cannon 17443 | -3/Testing | Found Prototype Processor 17491 | -3/Testing | Identified Cld. Nova Cannon 17523 | -3/Testing | System corruption reached 10% 17548 | -3/Testing | Scanned by Researcher 17549 | -3/Testing | Local machine network offline 17561 | -3/Testing | Found Prototype Protection 17561 | -3/Testing | Identified Lgt. Regenerative Plating 17565 | -3/Testing | Found Prototype Protection 17565 | -3/Testing | Identified Hvy. Regenerative Plating 17566 | -3/Testing | Identified Exp. Signal Interpreter 17592 | -3/Testing | Lost 11 parts (1p1n6u3w) 17667 | -3/Testing | Crushed by falling debris 17676 | -3/Testing | Released all parts (10) 17680 | -3/Testing | Spotted Executioner 17680 | -3/Testing | Spotted Striker 17681 | -3/Testing | Core integrity fell below 50% 17703 | -3/Testing | Lost 3 parts (1n2u) 17704 | -3/Testing | Spotted Striker 17707 | -3/Testing | Spotted Striker 17707 | -3/Testing | Spotted Investigator 17708 | -3/Testing | Core integrity fell below 20% 17709 | -3/Testing | Spotted Striker 17711 | -3/Testing | Destroyed by H-77 Assassin with Coil Gun Last Messages --------------- 17709_ Striker engulfed in stasis bubble. 17709_ G-73 Enforcer engulfed in stasis bubble. 17709_ Investigator engulfed in stasis bubble. 17709_ M-36 Artificer engulfed in stasis bubble. 17709_ H-77 Assassin engulfed in stasis bubble. 17709_ P-80 Master engulfed in stasis bubble. 17709_ Striker engulfed in stasis bubble. 17709_ L-61 Swordsman engulfed in stasis bubble. 17709_ G-67 Veteran engulfed in stasis bubble. 17709_ P-80 Master engulfed in stasis bubble. 17709_ Stasis bubble strength at 194. 17710_ C-30 ARC bursts open, deploying its payload. 17710_ G-73 Enforcer unfolds itself. 17710_ G-67 Veteran unfolds itself. 17710_ I-47 Archangel knocked back. 17710_ P-80 Master stasis bubble strength at 193. 17710_ G-67 Veteran stasis bubble strength at 181. 17710_ I-47 Archangel stasis bubble strength at 190. 17710_ Stasis bubble strength at 188. 17711_ Fabnet algorithm triggers G-67 Veteran IFF filter rewrite. Map ----- +----------------------------------------------------+ | ???????# %=%="%%"%= %" #????? | | ###?????####+####+#####[ "#############/####????? | | #???????# # #???????? ????????? | | #???????# """"" # #????????""????????? | | #???????# """"" # #??????? ????????? | | #???????# """"" / ####???????""?????????? | | #???????# % # #?????????????????????? | | #???????# """"" # l #?????????????????????? | | ######### """"" ####p#?????????????????????? | | + """"" #??#g#?????????????????????? | | ## #??#h"?????????????????????? | | ## ! #??#g#?????????????????????? | | ######+#######??#p#?????????????????????? | | ####+###????# #????????#g#?????????????????????? | | #? ?????# #????????#h#?????????????????????? | | # ] ??? #????????il#?????????????????????? | | # "T" #?###????????#g#?????????????????????? | | # """ #????????????#g#?????????????????????? | | ###########????????????#b#?????????????????????? | | ???????????????????????#e#?????????????????????? | | ???????????????????????#E#?????????????????????? | | ???????????????????????#K#?????????????????????? | | ???????????????????????#h#?#???????????????????? | | ???????????????????????#K#m#???????????????????? | | ???????????????????######Kg###??????????????????? | | ????????????????????# %@hl #??????????????????? | | ????????????????????# %/=lgcl#??????????????????? | | ????????????????????# i ggK#??????????????????? | | ????????????????????# """h"""gggb????????????????? | | ????????????????????# """ """p#g #???????????????? | | ????????????????????# """ """ #e #???????????????? | | ????????????????????# p #p #???????????????? | | ????????????????????# #?e#???????????????? | | ??????????????????????#######?#??????????????????? | | ?????????????????????????????????????????????????? | | ?????????????????????????????????????????????????? | | ?????????????????????????????e???????????????????? | | ?????????????????????????????????????????????????? | | ?????????????????????????????????????????????????? | | ?????????????????????????????????????????????????? | | ?????????????????????????????????????????????????? | | ?????????????????????????????????????????????????? | | ?????????????????????????????????????????????????? | | ?????????????????????????????????????????????????? | | ?????????????????????????????????????????????????? | | ?????????????????????????????????????????????????? | | ?????????????????????????????????????????????????? | | ?????????????????????????????????????????????????? | | ?????????????????????????????????????????????????? | | ?????????????????????????????????????????????????? | +----------------------------------------------------+ Best States ------------- Heat Dissipation 59 Coolant Potential 65 Energy Generation 21 Energy Capacity 825 Matter Stores 300 Matter Capacity 300 Sight Range 16 Terrain Scan Density 10 Additional Mass Support 12 Corruption Containment 8 Corruption Block 15 Armor Coverage 750 Resistance: KI 25 Resistance: TH 30 Evasion (%) 50 Targeting Accuracy 12 Target Analysis 8 Core Analysis 6 Recoil Reduction 10 Matter Filtering 50 Kinecelleration 40 Offensive Hacking 10 Defensive Hacking 24 Relay Coupler Types 7 Relay Coupler Value 143 Item Schematics ----------------- Imp. Heavy Treads | -6/Factory | Scanalyzed Hyp. Mass Driver | -6/Hub_04(d) | Hacked Centrium Heavy Treads | -5/Factory | Scanalyzed Centrium Medium Armor Plating | -5/Factory | Scanalyzed Robot Schematics ------------------ None Fabricated ------------ O-24 Administrator | x1 | -7/Factory | Preloaded L-31 Rogue | x3 | -7/Factory | Preloaded Lgt. Quantum Reactor | x2 | -5/Factory | Preloaded A-15 Conveyor | x1 | -5/Factory | Preloaded B-60 Warrior | x3 | -5/Factory | Preloaded Alien Tech Used ----------------- None Achievements -------------- None Challenges ------------ None Game ------ Seed TerrabombHellfireSlayer Manual? 1 Play Time 04:07:57 Cumulative 292.2 hours Start 2022.07.18 @ 22:17:22 End 2022.07.20 @ 01:40:44 Sessions 3 Manual Loads 0 Difficulty Rogue Special Mode None Game No. 143 Rogue 139 Adventurer 0 Explorer 4 Win Type - Total 16 Types 4/0/2/4/1/2/3/0/0 Lore% 77 Gallery% 83 Achievement% 75 Wizard Run 0 Options --------- ASCII 0 Keyboard 0 Movement Mouse Keybinds 0 Fullscreen 1 Font 18/SmallcapsGlow Map View 76x50 Tactical HUD 1 Map Filters NONE Filters NONE Steam 1 RUN: 89dcb9db-4cce-44f6-b805-5fcd8756856f